bitfinex/quotes_SOLUSD_20260220
["timestamp","ask_amount","ask_price","bid_price","bid_amount"]
[1771591519766,41.82659095,83.679,83.628,0.50954166]
[1771591519967,4.39637976,83.66,83.628,0.50954166]
[1771591520162,4.39637976,83.67,83.63,0.50954166]
[1771591520467,11.95185791,83.669,83.63,0.50954166]
[1771591521440,11.95185791,83.669,83.631,41.85050997]
[1771591521642,59.70318328,83.748,83.636,0.50954166]
[1771591521845,4.39637976,83.72,83.661,0.50954166]
[1771591522062,4.39637976,83.72,83.671,0.50954166]
[1771591522244,4.39637976,83.72,83.677,0.50954166]
[1771591523257,4.39637976,83.72,83.679,0.50954166]
[1771591523863,4.39078468,83.72,83.679,0.50954166]
[1771591524364,29.85877247,83.728,83.679,0.50954166]
[1771591525273,29.85877247,83.728,83.665,0.14216157]
[1771591525274,29.85877247,83.728,83.681,0.50954166]
[1771591525562,4.39078468,83.72,83.681,0.50954166]
[1771591526654,11.94471983,83.719,83.683,0.50954166]
[1771591528048,11.94471983,83.719,83.685,0.50954166]
[1771591528655,4.39078468,83.71,83.68,11.95021897]
[1771591528854,41.80651942,83.719,83.681,0.50954166]
[1771591530057,41.80651942,83.719,83.683,0.50954166]
[1771591533575,41.80651942,83.719,83.685,0.50954166]
[1771591535686,0.14216157,83.728,83.687,0.50954166]
[1771591535974,11.94329324,83.729,83.687,0.50954166]
[1771591537560,11.94329324,83.729,83.689,0.50954166]
[1771591538573,11.94329324,83.729,83.691,0.50954166]
[1771591541382,11.94329324,83.729,83.693,0.50954166]
[1771591545267,4.39078468,83.72,83.689,0.50954166]
[1771591546586,11.94471983,83.719,83.691,0.50954166]
[1771591547677,41.80651942,83.719,83.684,11.94958594]
[1771591547989,41.80651942,83.719,83.685,0.50954166]
[1771591550091,0.14216157,83.728,83.685,0.50954166]
[1771591550392,4.39078468,83.72,83.685,0.50954166]
[1771591552783,4.39078468,83.71,83.68,11.95024357]
[1771591553189,4.39078468,83.71,83.681,0.50954166]
[1771591554293,4.39078468,83.71,83.641,3.69383402]
[1771591554294,11.94343588,83.728,83.683,0.50954166]
[1771591554996,0.2,83.73,83.687,0.50954166]
[1771591556690,11.94329324,83.729,83.689,0.50954166]
[1771591557484,0.2,83.73,83.689,0.50954166]
[1771591558179,11.94329324,83.729,83.689,0.50954166]
[1771591559497,11.94329324,83.729,83.691,0.50954166]
[1771591560678,11.94329324,83.729,83.693,0.50954166]
[1771591563385,11.94329324,83.729,83.695,0.50954166]
[1771591566100,11.94329324,83.729,83.697,0.50954166]
[1771591567186,0.28432314,83.728,83.669,0.50954166]
[1771591567394,11.94329324,83.729,83.676,0.50954166]
[1771591567908,4.39078468,83.72,83.678,0.50954166]
[1771591568084,11.94329324,83.729,83.678,0.50954166]
[1771591569705,11.94329324,83.729,83.68,0.50954166]
[1771591571789,11.94329324,83.729,83.685,0.14216157]
[1771591571991,11.94329324,83.729,83.686,0.50954166]
[1771591573603,41.80152634,83.729,83.686,0.50954166]
[1771591574107,4.39078468,83.72,83.688,0.50954166]
[1771591576305,41.80651942,83.719,83.688,0.50954166]
[1771591577100,11.94357853,83.727,83.69,0.50954166]
[1771591577407,41.80252486,83.727,83.69,0.50954166]
[1771591578392,41.80252486,83.727,83.692,0.50954166]
[1771591578811,4.39078468,83.72,83.692,0.50954166]
[1771591580709,11.94471983,83.719,83.692,0.50954166]
[1771591584323,41.80651942,83.719,83.692,0.50954166]
[1771591593001,4.39088391,83.71,83.667,0.50954166]
[1771591596215,4.39088391,83.72,83.669,0.50954166]
[1771591600624,11.94471983,83.719,83.671,0.50954166]
[1771591601523,4.39088391,83.71,83.671,0.50954166]
[1771591601712,4.39088391,83.7,83.671,0.50954166]
[1771591602909,4.39088391,83.7,83.638,0.14216157]
[1771591602910,4.39088391,83.69,83.64,0.50954166]
[1771591603227,0.42648471,83.698,83.64,0.50954166]
[1771591603228,4.39088391,83.68,83.64,0.50954166]
[1771591604722,11.95042961,83.679,83.641,0.50954166]
[1771591608018,11.95042961,83.679,83.642,11.95571602]
[1771591608233,11.95042961,83.679,83.643,0.50954166]
[1771591609209,4.39088391,83.69,83.643,0.50954166]
[1771591610828,11.94900166,83.689,83.644,41.84400554]
[1771591611129,11.94900166,83.689,83.645,0.50954166]
[1771591612243,4.39088391,83.68,83.647,0.50954166]
[1771591619855,11.95042961,83.679,83.647,0.50954166]
[1771591621032,3.69383402,83.708,83.618,0.14216157]
[1771591621033,0.42648471,83.703,83.649,0.50954166]
[1771591621234,42.23899739,83.707,83.649,0.50954166]
[1771591621235,11.94643219,83.707,83.649,0.50954166]
[1771591621439,4.39088391,83.69,83.649,0.50954166]
[1771591621638,4.39088391,83.7,83.649,0.50954166]
[1771591626150,4.39088391,83.7,83.638,0.14216157]
[1771591626151,29.86215628,83.718,83.653,0.50954166]
[1771591626323,4.39088391,83.72,83.665,0.50954166]
[1771591626528,4.39088391,83.72,83.667,0.50954166]
[1771591626742,4.39088391,83.71,83.667,0.50954166]
[1771591629558,11.94614677,83.709,83.669,0.50954166]
[1771591629750,41.81151369,83.709,83.669,0.50954166]
[1771591631362,11.94614677,83.709,83.669,0.50954166]
[1771591633138,11.94614677,83.709,83.671,0.50954166]
[1771591635240,0.42648471,83.708,83.671,0.50954166]
[1771591635648,0.42648471,83.708,83.673,0.50954166]
[1771591638035,11.94643219,83.707,83.675,0.50954166]
[1771591645343,4.39088391,83.69,83.654,0.50954166]
[1771591646437,4.39088391,83.7,83.654,0.50954166]
[1771591647539,11.94757404,83.699,83.655,41.83850336]
[1771591647745,11.94757404,83.699,83.656,0.50954166]
[1771591651567,11.94757404,83.699,83.658,0.50954166]
[1771591654670,11.94757404,83.699,83.66,0.50954166]
[1771591658246,41.81650915,83.699,83.661,11.9530008]
[1771591658445,41.81650915,83.699,83.662,0.50954166]
[1771591663578,4.39354004,83.69,83.657,0.50954166]
[1771591665174,4.39354004,83.7,83.659,0.50954166]
[1771591667172,16.34103918,83.7,83.661,0.50954166]
[1771591667377,11.94749914,83.7,83.661,0.50954166]
[1771591669274,11.94614677,83.709,83.663,0.50954166]
[1771591670269,41.81151369,83.709,83.663,0.50954166]
[1771591672781,4.39354004,83.71,83.665,0.50954166]
[1771591675887,41.81151369,83.709,83.666,11.95228647]
[1771591676092,41.81151369,83.709,83.667,0.50954166]
[1771591678370,41.81151369,83.709,83.669,0.50954166]
[1771591680487,0.42648471,83.728,83.671,0.50954166]
[1771591680876,0.14216157,83.728,83.671,0.50954166]
[1771591681479,41.80158025,83.729,83.677,0.50954166]
[1771591682484,11.94329324,83.729,83.679,0.50954166]
[1771591685284,11.94329324,83.729,83.681,0.50954166]
[1771591686194,11.94107613,83.745,83.691,0.45786439]
[1771591686394,0.18280995,83.749,83.697,0.45786439]
[1771591686596,0.18280995,83.749,83.702,0.28432314]
[1771591686784,0.2,83.75,83.717,0.45786439]
[1771591687290,0.2,83.75,83.719,0.49865264]
[1771591688995,0.2,83.76,83.721,0.49865264]
[1771591689300,0.2,83.76,83.727,0.49865264]
[1771591689489,0.2,83.76,83.729,0.49865264]
[1771591689694,0.2,83.77,83.73,0.49865264]
[1771591692607,0.2,83.77,83.736,0.49865264]
[1771591693299,0.38264282,83.769,83.732,0.49865264]
[1771591693896,0.38262299,83.759,83.726,0.49865264]
[1771591694318,46.37470474,83.77,83.726,0.49865264]
[1771591694319,0.2,83.77,83.726,0.49865264]
[1771591694503,0.38262299,83.768,83.726,0.49865264]
[1771591694706,0.38260339,83.766,83.728,0.49865264]
[1771591697207,0.38256487,83.764,83.73,0.49865264]
[1771591699396,0.38252722,83.762,83.73,0.49865264]
[1771591700309,0.38250872,83.759,83.73,0.49865264]
[1771591701495,0.38249044,83.757,83.73,0.49865264]
[1771591702893,0.38249044,83.757,83.732,0.49865264]
[1771591703816,0.38243683,83.755,83.732,0.49865264]
[1771591706090,11.93972825,83.754,83.732,0.49865264]
[1771591706298,0.38240211,83.753,83.732,0.49865264]
[1771591706611,0.38238505,83.769,83.732,0.49865264]
[1771591706913,0.38238505,83.768,83.734,0.49865264]
[1771591710007,0.38233503,83.759,83.735,11.94243745]
[1771591710212,0.38233503,83.759,83.736,0.49865264]
[1771591712316,0.38233503,83.759,83.737,11.94215221]
[1771591712515,0.38233503,83.759,83.738,0.49865264]
[1771591718929,0.38233503,83.759,83.739,11.94186699]
[1771591719321,0.38233503,83.759,83.74,0.46310034]
[1771591723338,0.38233503,83.759,83.742,0.46310034]
[1771591732622,0.38233503,83.759,83.737,0.46310034]
[1771591733461,0.38199158,83.767,83.737,0.46310034]
[1771591733738,4.58602698,83.77,83.737,0.46310034]
[1771591733739,0.2,83.77,83.737,0.46310034]
[1771591734750,0.2,83.77,83.739,0.46310034]
[1771591734939,0.38196703,83.769,83.739,0.46310034]
[1771591735946,4.58602698,83.77,83.739,0.46310034]
[1771591735947,0.38195497,83.759,83.739,0.46310034]
[1771591739556,0.38195497,83.759,83.741,0.46310034]
[1771591740055,11.93844122,83.764,83.741,0.46310034]
[1771591740256,0.38190808,83.763,83.741,0.46310034]
[1771591741147,0.38189669,83.769,83.743,0.46310034]
[1771591741354,12.31948696,83.769,83.743,0.46310034]
[1771591741534,0.38189669,83.769,83.743,0.46310034]
[1771591742238,0.2,83.77,83.743,0.46310034]
[1771591742846,0.58187431,83.77,83.745,0.46310034]
[1771591743251,0.38187431,83.769,83.745,0.46310034]
[1771591743554,0.38187431,83.759,83.724,0.46310034]
[1771591746059,0.38187431,83.759,83.707,3.69383402]
[1771591748054,0.38187431,83.759,83.715,0.28432314]
[1771591748355,0.38187431,83.759,83.716,0.47681805]
[1771591749357,0.38187431,83.759,83.71,0.14216157]
[1771591749358,0.38187431,83.759,83.718,0.47681805]
[1771591753862,0.38187431,83.759,83.726,0.47681805]
[1771591754163,0.47475802,83.769,83.726,0.47681805]
[1771591754665,0.2,83.77,83.726,0.47681805]
[1771591756356,0.67475802,83.77,83.728,0.47681805]
[1771591757445,0.67475802,83.77,83.73,0.47681805]
[1771591758063,0.47475802,83.769,83.73,0.47681805]
[1771591758869,0.47475802,83.769,83.732,0.47681805]
[1771591766075,0.47475802,83.769,83.734,0.47681805]
[1771591768664,0.2,83.77,83.736,0.47681805]
[1771591768979,0.47475802,83.789,83.746,0.47681805]
[1771591770496,0.47475802,83.788,83.746,0.47681805]
[1771591770873,0.47475802,83.779,83.748,0.47681805]
[1771591772075,0.47475802,83.769,83.748,0.47681805]
[1771591772594,0.47475802,83.769,83.747,11.94072623]
[1771591772961,0.47475802,83.769,83.746,0.47681805]
[1771591776981,0.47475802,83.769,83.748,0.51409319]
[1771591778485,0.47475802,83.769,83.749,11.94044107]
[1771591778785,0.47475802,83.769,83.75,0.51409319]
[1771591780884,0.47475802,83.769,83.743,0.51409319]
[1771591781086,0.47475802,83.769,83.727,0.51409319]
[1771591785790,0.47475802,83.769,83.729,0.51409319]
[1771591791909,0.47475802,83.769,83.731,0.51409319]
[1771591794183,0.47475802,83.769,83.733,0.51409319]
[1771591796314,0.47475802,83.769,83.735,0.51409319]
[1771591798815,0.24,83.8,83.74,0.51409319]
[1771591798988,0.24,83.8,83.75,0.51409319]
[1771591798989,0.5259709,83.799,83.75,0.51409319]
[1771591799190,0.5259709,83.799,83.739,3.69383402]
[1771591799191,0.5259709,83.799,83.756,0.51409319]
[1771591799991,0.5259709,83.799,83.761,0.51409319]
[1771591801215,0.28432314,83.797,83.761,0.51409319]
[1771591801388,0.5259709,83.789,83.757,11.93930059]
[1771591801706,0.5259709,83.789,83.758,0.51409319]
[1771591802208,0.5259709,83.789,83.76,0.51409319]
[1771591802392,0.24,83.8,83.76,0.51409319]
[1771591802587,0.24,83.8,83.768,0.51409319]
[1771591802783,0.5259709,83.807,83.769,0.51409319]
[1771591802983,0.2,83.81,83.769,0.51409319]
[1771591804617,0.2,83.81,83.771,0.56927335]
[1771591805715,0.55920249,83.809,83.771,0.56927335]
[1771591807206,0.55920249,83.809,83.777,0.58275464]
[1771591809323,0.55920249,83.809,83.778,12.5190625]
[1771591809696,0.55920249,83.809,83.778,42.35983215]
[1771591809900,0.55920249,83.809,83.779,0.58275464]
[1771591817727,0.55920249,83.809,83.781,0.58275464]
[1771591819040,0.55920249,83.809,83.774,0.58275464]
[1771591819325,0.57487989,83.799,83.757,0.58275464]
[1771591822526,0.57487989,83.807,83.759,0.58275464]
[1771591823316,0.57487989,83.789,83.759,0.58275464]
[1771591824120,4.38332554,83.8,83.76,0.58275464]
[1771591825127,4.38332554,83.79,83.762,0.58275464]
[1771591826030,0.50965545,83.789,83.762,0.58275464]
[1771591827355,0.50965545,83.789,83.763,11.93844537]
[1771591828013,0.50965545,83.789,83.764,0.58275464]
[1771591830938,0.519536,83.795,83.766,0.58275464]
[1771591831139,0.519536,83.799,83.766,0.58275464]
[1771591831525,5.10286154,83.81,83.768,0.58275464]
[1771591831718,0.52158825,83.809,83.768,0.58275464]
[1771591833433,0.52158825,83.809,83.77,0.58275464]
[1771591833737,0.5236131,83.799,83.77,0.58275464]
[1771591835550,0.5236131,83.799,83.772,0.58275464]
[1771591838338,0.5236131,83.799,83.767,0.14216157]
[1771591838339,0.5236131,83.799,83.774,0.57787884]
[1771591839345,0.5371753,83.809,83.774,0.57787884]
[1771591842633,0.5371753,83.809,83.776,0.57787884]
[1771591844456,0.5371753,83.809,83.778,0.57787884]
[1771591846348,0.5371753,83.809,83.78,0.57787884]
[1771591849146,0.5371753,83.809,83.781,11.93588045]
[1771591849847,0.5371753,83.809,83.782,0.57787884]
[1771591851048,0.5371753,83.809,83.781,11.93588045]
[1771591851245,0.55805739,83.799,83.781,11.93588045]
[1771591851646,0.55805739,83.799,83.773,11.93702028]
[1771591852159,0.55805739,83.799,83.774,0.57787884]
[1771591857657,0.55805739,83.799,83.776,0.57787884]
[1771591860751,0.55805739,83.799,83.778,0.57787884]
[1771591861860,0.57484838,83.809,83.778,0.57787884]
[1771591862949,0.57484838,83.809,83.78,0.57787884]
[1771591871748,0.2,83.81,83.782,0.65285563]
[1771591874565,0.2,83.81,83.784,0.65285563]
[1771591876878,1e-08,83.81,83.785,0.65285563]
[1771591877975,0.02044643,83.81,83.785,0.65285563]
[1771591878151,0.02044642,83.809,83.787,0.65285563]
[1771591880174,0.02044642,83.809,83.788,11.93488327]
[1771591880358,0.02044642,83.809,83.789,0.65285563]
[1771591885588,1e-08,83.81,83.791,0.65285563]
[1771591887467,0.22506859,83.83,83.792,0.65285563]
[1771591887775,0.02506859,83.829,83.794,0.65285563]
[1771591887968,4.38145256,83.82,83.794,0.65285563]
[1771591888168,0.02555353,83.821,83.794,0.65285563]
[1771591888382,4.58145256,83.83,83.794,0.65285563]
[1771591888577,0.02555353,83.829,83.794,0.65285563]
[1771591889773,0.02555353,83.829,83.796,0.65285563]
[1771591891403,0.02697962,83.828,83.796,0.65285563]
[1771591891898,0.02697962,83.828,83.798,0.65285563]
[1771591894173,0.02697962,83.828,83.8,0.65285563]
[1771591896794,0.2,83.83,83.802,0.65285563]
[1771591897017,0.02968278,83.829,83.802,0.65285563]
[1771591898001,0.2,83.83,83.802,0.65285563]
[1771591898990,0.2,83.83,83.804,0.65669747]
[1771591899978,1e-08,83.83,83.805,0.65669747]
[1771591900594,1e-08,83.83,83.807,0.65669747]
[1771591900976,1e-08,83.83,83.809,0.65669747]
[1771591901379,11.92498857,83.858,83.81,0.65669747]
[1771591901579,0.2,83.88,83.834,3.69383402]
[1771591901781,1e-08,83.884,83.847,0.65669747]
[1771591901993,1e-08,83.89,83.857,0.65669747]
[1771591902693,1e-08,83.897,83.858,0.66901722]
[1771591903079,0.2,83.9,83.867,0.14216157]
[1771591903281,0.2,83.9,83.868,0.66901722]
[1771591904376,4.57931529,83.9,83.868,0.66901722]
[1771591904586,0.2,83.9,83.868,0.66901722]
[1771591905779,0.2,83.9,83.87,0.66901722]
[1771591907502,0.2,83.9,83.871,11.92307233]
[1771591907702,0.2,83.9,83.872,0.66901722]
[1771591910323,4.57931529,83.9,83.86,0.66901722]
[1771591910604,11.91909319,83.899,83.86,0.66901722]
[1771591911195,0.2,83.9,83.86,0.66901722]
[1771591911600,0.2,83.9,83.861,0.66901722]
[1771591911805,11.91909319,83.899,83.861,0.66901722]
[1771591912194,11.91909319,83.899,83.863,0.66901722]
[1771591913807,0.42648471,83.898,83.854,0.66901722]
[1771591914401,4.57931529,83.9,83.856,0.66901722]
[1771591914588,0.2,83.9,83.856,0.66901722]
[1771591914794,11.91909319,83.899,83.856,0.66901722]
[1771591916008,11.91909319,83.899,83.857,41.73772016]
[1771591916211,11.91909319,83.899,83.858,0.66901722]
[1771591916712,0.2,83.9,83.858,0.66901722]
[1771591917096,4.57931529,83.9,83.858,0.66901722]
[1771591917703,11.91909319,83.899,83.858,0.66901722]
[1771591918500,0.2,83.9,83.86,0.66901722]
[1771591920417,0.2,83.9,83.862,0.66901722]
[1771591920720,1e-08,83.9,83.868,0.66901722]
[1771591921219,4.3793153,83.9,83.868,0.66901722]
[1771591922518,11.91909319,83.899,83.87,0.66901722]
[1771591922909,4.3793153,83.9,83.87,0.66901722]
[1771591923212,16.2982954,83.9,83.87,0.66901722]
[1771591924616,11.91898011,83.9,83.845,0.28432314]
[1771591924820,4.37931529,83.89,83.846,0.67185557]
[1771591926624,11.92051401,83.889,83.848,0.67185557]
[1771591927627,4.37931529,83.88,83.839,0.66901722]
[1771591927813,11.92051401,83.889,83.839,0.66901722]
[1771591930224,11.92051401,83.889,83.841,0.66901722]
[1771591930632,4.37931529,83.88,83.841,0.66901722]
[1771591932419,4.37931529,83.87,83.843,0.66901722]
[1771591933137,4.37931529,83.88,83.843,0.66901722]
[1771591933428,11.92193516,83.879,83.844,11.92691188]
[1771591933636,0.02043449,83.878,83.845,0.66901722]
[1771591936722,0.02043449,83.878,83.847,0.66901722]
[1771591939523,0.02043449,83.878,83.849,0.66901722]
[1771591944740,47.76456998,83.92,83.85,11.92605843]
[1771591945043,6.22792784,83.952,83.853,0.28432314]
[1771591945363,0.1,83.99,83.918,3.69383402]
[1771591945364,1.66419766,83.958,83.918,3.69383402]
[1771591945568,0.1,83.99,83.959,0.28432314]
[1771591945836,4.37931529,84.03,83.959,0.42648471]
[1771591946042,41.64187983,84.05,83.959,0.42648471]
[1771591946257,41.64187983,84.05,83.958,4.56986374]
[1771591946423,4.37931529,84.02,83.958,4.56986374]
[1771591946630,41.64187983,84.05,83.959,0.42648471]
[1771591946820,0.6817925,84.009,83.96,11.91043353]
[1771591947020,0.6817925,84.009,83.935,0.68146356]
[1771591947227,4.37931529,84.0,83.935,0.68146356]
[1771591947421,0.14216157,83.989,83.935,0.68146356]
[1771591947736,0.42648471,83.989,83.935,0.68146356]
[1771591948127,3.69383402,84.015,83.935,0.68146356]
[1771591948333,0.14216157,83.999,83.939,0.68146356]
[1771591948651,0.42648471,83.999,83.939,0.68146356]
[1771591948953,0.28432314,83.999,83.939,0.68146356]
[1771591949251,0.42648471,83.997,83.94,11.91327138]
[1771591949454,0.42648471,83.989,83.94,11.91327138]
[1771591950226,0.42648471,83.979,83.934,11.91401576]
[1771591950626,0.42648471,83.979,83.923,0.68146356]
[1771591950627,0.02355651,83.969,83.923,0.68146356]
[1771591950836,0.02355651,83.977,83.924,0.68146356]
[1771591951042,0.02355651,83.977,83.925,41.70390228]
[1771591951232,0.02355651,83.977,83.926,0.68146356]
[1771591952251,0.0279016,83.968,83.925,11.91540065]
[1771591952554,0.0279016,83.968,83.92,0.68146356]
[1771591953153,0.03219946,83.958,83.919,11.91619671]
[1771591953553,0.03219946,83.958,83.919,12.59766027]
[1771591953739,4.37931529,83.95,83.92,0.68146356]
[1771591953936,4.36739268,83.95,83.92,0.68146356]
[1771591954155,0.03643972,83.939,83.91,0.68146356]
[1771591954645,0.03643972,83.939,83.906,11.91806909]
[1771591954953,0.04063309,83.938,83.907,0.68146356]
[1771591955375,0.04063309,83.948,83.907,0.68146356]
[1771591955656,4.36739268,83.94,83.908,11.91781474]
[1771591955859,4.36739268,83.94,83.909,0.68146356]
[1771591956351,0.04479507,83.918,83.879,0.68146356]
[1771591956540,0.04479507,83.935,83.879,0.68146356]
[1771591956852,0.04891411,83.928,83.879,0.68146356]
[1771591957158,0.42648471,83.929,83.879,0.68146356]
[1771591957863,0.42648471,83.929,83.853,47.70224013]
[1771591957864,0.05699451,83.908,83.866,0.68146356]
[1771591958240,4.36739268,83.91,83.866,0.68146356]
[1771591959366,0.6854814,83.878,83.77,0.2]
[1771591959540,4.36739268,83.85,83.77,0.2]
[1771591959747,4.36739268,83.84,83.77,0.2]
[1771591959945,4.36739268,83.84,83.774,9.48118061]
[1771591960146,4.36739268,83.85,83.77,0.2]
[1771591960361,4.36739268,83.86,83.788,3.69383402]
[1771591960667,11.92350784,83.868,83.798,0.42648471]
[1771591960962,4.36739268,83.86,83.801,0.28432314]
[1771591961259,4.36739268,83.86,83.801,0.42648471]
[1771591961553,4.36739268,83.86,83.814,0.6983188]
[1771591962857,4.36739268,83.86,83.815,41.75863508]
[1771591963069,4.36739268,83.86,83.816,0.6983188]
[1771591963962,11.7222947,83.86,83.816,0.6983188]
[1771591964960,11.7222947,83.86,83.804,0.14216157]
[1771591964961,11.7222947,83.85,83.818,0.6983188]
[1771591967256,0.68915056,83.859,83.819,11.93046922]
[1771591967558,0.68915056,83.859,83.82,0.6983188]
[1771591967962,0.68915056,83.857,83.82,0.6983188]
[1771591970066,0.68915056,83.849,83.807,0.6983188]
[1771591973068,0.68915056,83.849,83.801,6.526819]
[1771591973069,0.68915056,83.819,83.801,5.722715]
[1771591973267,11.7222947,83.81,83.781,0.71021985]
[1771591973462,11.7222947,83.8,83.774,0.74278378]
[1771591974677,11.93331662,83.799,83.774,0.74278378]
[1771591977466,11.93331662,83.799,83.77,0.2]
[1771591977650,0.02135363,83.798,83.77,0.2]
[1771591978050,0.02135363,83.798,83.77,0.94278378]
[1771591978268,0.02135363,83.798,83.771,0.74278378]
[1771591978765,0.02135363,83.798,83.771,12.68008905]
[1771591979065,0.02135363,83.798,83.771,0.74278378]
[1771591979764,53.72,83.804,83.773,0.74278378]
[1771591981969,11.7222947,83.8,83.775,0.74278378]
[1771591982871,45.23565531,83.804,83.794,0.74278378]
[1771591983983,11.7222947,83.8,83.775,0.75554071]
[1771591984472,45.23565531,83.804,83.775,0.75554071]
[1771591984672,11.7222947,83.8,83.775,0.75554071]
[1771591984873,45.23565531,83.804,83.775,0.75554071]
[1771591985070,57.16833513,83.804,83.777,0.75554071]
[1771591986962,57.16833513,83.804,83.779,0.74278378]
[1771591987558,45.23565531,83.804,83.779,0.74278378]
[1771591987974,11.93274703,83.803,83.779,0.74278378]
[1771591988380,45.23565531,83.804,83.779,0.74278378]
[1771591989182,4.38181089,83.81,83.781,0.74278378]
[1771591989588,4.38181089,83.8,83.781,0.74278378]
[1771591990083,0.07497146,83.807,83.781,0.74278378]
[1771591998882,4.38181089,83.8,83.781,0.74278378]
[1771591999281,0.73082551,83.911,83.805,4.38181089]
[1771591999480,4.38181089,83.89,83.813,0.14216157]
[1771591999688,0.7953601,83.889,83.815,5.50302345]
[1771591999981,0.7953601,83.889,83.817,5.50302345]
[1771592000189,0.7953601,83.889,83.819,5.50302345]
[1771592000500,0.7953601,83.889,83.821,5.50302345]
[1771592000689,0.7953601,83.889,83.823,5.50302345]
[1771592000999,0.7953601,83.889,83.825,5.50302345]
[1771592001180,0.7953601,83.889,83.827,5.50302345]
[1771592001495,0.7953601,83.889,83.841,0.28432314]
[1771592001698,0.7953601,83.889,83.842,0.28432314]
[1771592001889,0.7953601,83.889,83.843,0.14216157]
[1771592002598,0.7953601,83.889,83.848,0.02160053]
[1771592004414,0.7953601,83.889,83.85,0.02684735]
[1771592007508,65.65949887,83.897,83.849,0.04222082]
[1771592007509,0.7953601,83.887,83.849,0.04222082]
[1771592009602,0.7953601,83.885,83.849,0.04222082]
[1771592011101,11.92122454,83.884,83.849,0.04222082]
[1771592011308,11.92122454,83.884,83.845,3.69383402]
[1771592011309,0.7953601,83.883,83.838,11.92776545]
[1771592011502,0.28432314,83.88,83.833,11.92838341]
[1771592011804,0.7953601,83.879,83.833,11.92838341]
[1771592012186,0.7953601,83.879,83.833,11.99508053]
[1771592012784,0.7953601,83.877,83.833,0.06669712]
[1771592013603,0.7953601,83.877,83.81,0.07142042]
[1771592013604,0.7953601,83.869,83.81,0.07142042]
[1771592015301,0.7953601,83.867,83.811,0.080711]
[1771592018205,0.7953601,83.867,83.815,0.09866114]
[1771592018716,0.82063968,83.865,83.815,0.09866114]
[1771592019288,0.82063968,83.863,83.815,0.09866114]
[1771592021305,0.82063968,83.861,83.818,0.11162165]
[1771592022311,0.28432314,83.842,83.782,0.11583548]
[1771592022492,0.42648471,83.826,83.748,0.11583548]
[1771592022693,0.82063968,83.818,83.76,0.32000555]
[1771592022900,0.82063968,83.818,83.761,0.14216157]
[1771592023513,11.71259154,83.82,83.771,41.78056845]
[1771592023514,0.82063968,83.816,83.771,41.78056845]
[1771592024516,11.93189275,83.809,83.771,41.78056845]
[1771592024819,0.82063968,83.808,83.771,41.78056845]
[1771592027219,0.82063968,83.799,83.771,41.78056845]
[1771592027612,0.82063968,83.799,83.771,11.93730527]
[1771592030621,0.82063968,83.799,83.772,0.15178186]
[1771592037723,53.72,83.824,83.783,0.28432314]
[1771592038030,0.82063968,83.809,83.788,0.17729344]
[1771592038525,4.38203374,83.81,83.79,0.83441615]
[1771592039232,4.38203374,83.82,83.79,0.83441615]
[1771592039728,4.38203374,83.82,83.794,0.83441615]
[1771592039924,4.38203374,83.82,83.796,0.83441615]
[1771592040428,5.20267342,83.82,83.797,11.93360144]
[1771592040732,5.20267342,83.82,83.797,12.76801759]
[1771592041029,0.82063968,83.819,83.797,12.76801759]
[1771592042715,4.38203374,83.82,83.797,11.93360144]
[1771592042716,0.82063968,83.818,83.797,11.93360144]
[1771592042918,4.38203374,83.81,83.797,11.93360144]
[1771592043225,0.82063968,83.812,83.797,11.93360144]
[1771592043824,0.82063968,83.818,83.797,11.93360144]
[1771592045625,0.81359758,83.816,83.79,62.8]
[1771592045820,0.81359758,83.809,83.791,11.93445596]
[1771592046020,0.81359758,83.815,83.791,12.79436061]
[1771592046328,0.81359758,83.815,83.759,5.36086188]
[1771592046329,0.81359758,83.799,83.781,62.8]
[1771592046510,0.81359758,83.789,83.771,62.8]
[1771592046709,4.38203374,83.78,83.762,0.85990465]
[1771592046917,0.81359758,83.779,83.742,0.85990465]
[1771592047144,4.38203374,83.76,83.743,11.94129658]
[1771592047619,0.8985105,83.764,83.743,11.94129658]
[1771592051427,11.93672204,83.776,83.744,0.82095435]
[1771592052223,11.74634183,83.77,83.744,0.82095435]
[1771592052423,11.93672204,83.776,83.744,0.82095435]
[1771592053535,0.8985105,83.775,83.746,0.82095435]
[1771592055532,11.93687779,83.774,83.747,11.94072623]
[1771592055737,0.8985105,83.773,83.748,0.82095435]
[1771592057624,0.8985105,83.769,83.748,0.82095435]
[1771592057820,0.8985105,83.768,83.748,0.82095435]
[1771592058644,0.8985105,83.768,83.746,0.82095435]
[1771592060335,0.8985105,83.768,83.747,12.76168058]
[1771592061348,0.8985105,83.768,83.748,0.82095435]
[1771592065045,0.8985105,83.766,83.742,0.82095435]
[1771592068048,0.8985105,83.766,83.744,0.82095435]
[1771592072651,11.93816032,83.765,83.738,63.62095435]
[1771592072846,11.93816032,83.765,83.726,0.82095435]
[1771592072847,0.8985105,83.749,83.726,0.82095435]
[1771592073734,0.8985105,83.749,83.728,0.82095435]
[1771592080041,0.8985105,83.749,83.729,11.94329324]
[1771592080360,0.90591452,83.756,83.732,0.93040286]